fUSD/lending_fUSD_20250423
["ID","MTS","AMOUNT","RATE_DAILY","PERIOD"]
[358688188,1745373042474,-151.3,0.000389,2]
[358688189,1745373042485,-151.3,0.000389,2]
[358688190,1745373042499,-151.3,0.000389,2]
[358688191,1745373042509,-151.3,0.000389,2]
[358688192,1745373042519,-151.3,0.000389,2]
[358688193,1745373042529,-151.3,0.000389,2]
[358688194,1745373042539,-151.3,0.000389,2]
[358688195,1745373042549,-151.3,0.000389,2]
[358688196,1745373042559,-151.3,0.000389,2]
[358688197,1745373042570,-151.3,0.000389,2]
[358688198,1745373042579,-151.3,0.000389,2]
[358688199,1745373042589,-151.3,0.000389,2]
[358688200,1745373042599,-151.3,0.000389,2]
[358688201,1745373042609,-151.3,0.000389,2]
[358688202,1745373042619,-151.3,0.000389,2]
[358688203,1745373042629,-151.3,0.000389,2]
[358688204,1745373042639,-151.3,0.000389,2]
[358688205,1745373042649,-151.3,0.000389,2]
[358688206,1745373042659,-151.3,0.000389,2]
[358688207,1745373042669,-151.3,0.000389,2]
[358688208,1745373042679,-151.3,0.000389,2]
[358688209,1745373042689,-151.3,0.000389,2]
[358688210,1745373042701,-151.3,0.000389,2]
[358688211,1745373042710,-151.3,0.000389,2]
[358688212,1745373042720,-151.3,0.000389,2]
[358688213,1745373042730,-151.3,0.000389,2]
[358688214,1745373042739,-151.3,0.000389,2]
[358688215,1745373042749,-151.3,0.000389,2]
[358688216,1745373042759,-151.3,0.000389,2]
[358688217,1745373042769,-151.3,0.000389,2]
[358688218,1745373042778,-151.3,0.000389,2]
[358688219,1745373042788,-151.3,0.000389,2]
[358688220,1745373042798,-214.20442164,0.000389,14]
[358688221,1745373042807,-700.0,0.00039,2]
[358688222,1745373042817,-514.25107054,0.00039726,15]
[358688223,1745373042827,-500.0,0.00039726,15]
[358688224,1745373042836,-500.0,0.00039726,15]
[358688225,1745373042847,-199.91916459,0.00039726,15]
[358688226,1745373042857,-500.0,0.00039726,15]
[358688227,1745373042867,-500.0,0.00039726,15]
[358688228,1745373042876,-500.0,0.00039726,15]
[358688229,1745373042886,-500.0,0.00039726,15]
[358688230,1745373042896,-500.0,0.00039726,15]
[358688231,1745373042905,-500.0,0.00039726,15]
[358688232,1745373042915,-500.0,0.00039726,15]
[358688233,1745373042924,-500.0,0.00039726,15]
[358688234,1745373042934,-500.0,0.00039726,15]
[358688235,1745373042958,-500.0,0.00039726,15]
[358688236,1745373042968,-500.0,0.00039726,15]
[358688237,1745373042978,-500.0,0.00039726,15]
[358688238,1745373043267,-500.0,0.00039726,15]
[358688239,1745373043284,-500.0,0.00039726,15]
[358688240,1745373043295,-500.0,0.00039726,15]
[358688241,1745373043305,-500.0,0.00039726,15]
[358688242,1745373043316,-500.0,0.00039726,15]
[358688243,1745373043326,-500.0,0.00039726,15]
[358688244,1745373043336,-500.0,0.00039726,15]
[358688245,1745373043346,-500.0,0.00039726,15]
[358688246,1745373043355,-500.0,0.00039726,15]
[358688247,1745373043365,-500.0,0.00039726,15]
[358688248,1745373043374,-500.0,0.00039726,15]
[358688249,1745373043384,-500.0,0.00039726,15]
[358688250,1745373043395,-500.0,0.00039726,15]
[358688251,1745373043408,-500.0,0.00039726,15]
[358688252,1745373043417,-500.0,0.00039726,15]
[358688253,1745373043427,-500.0,0.00039726,15]
[358688254,1745373043437,-500.0,0.00039726,15]
[358688255,1745373043448,-500.0,0.00039726,15]
[358688256,1745373043458,-500.0,0.00039726,15]
[358688257,1745373043468,-500.0,0.00039726,15]
[358688258,1745373043480,-500.0,0.00039726,15]
[358688259,1745373043490,-500.0,0.00039726,15]
[358688260,1745373043500,-500.0,0.00039726,15]
[358688261,1745373043510,-500.0,0.00039726,15]
[358688262,1745373043519,-500.0,0.00039726,15]
[358688263,1745373043530,-500.0,0.00039726,15]
[358688264,1745373043539,-500.0,0.00039726,15]
[358688265,1745373043549,-495.56253687,0.00039726,15]
[358688266,1745373043559,-500.0,0.00039726,15]
[358688267,1745373043570,-8962.77779489,0.00039999,7]
[358688268,1745373043580,-1181.65088066,0.0004,10]
[358688269,1745373043590,-1235.44593755,0.0004,10]
[358688270,1745373043599,-1539.58571502,0.0004,15]
[358688271,1745373043609,-355.68516749,0.0004,5]
[358688272,1745373043619,-150.75,0.0004,30]
[358688273,1745373043628,-150.75,0.0004,30]
[358688274,1745373043638,-2228.27,0.00040156,2]
[358688275,1745373043648,-814.30504774,0.00040271,5]
[358688276,1745373043658,-506.18221623,0.00040271,5]
[358688277,1745373043668,-796.0,0.00040577,2]
[358688278,1745373043677,-1285.0,0.00040577,2]
[358688279,1745373043687,-2145.0,0.00040577,2]
[358688280,1745373043699,-876.0,0.00040577,2]
[358688281,1745373043709,-500.0,0.00040999,10]
[358688282,1745373043719,-750.0,0.00041,2]
[358688283,1745373043729,-199260.0,0.00041,5]
[358688284,1745373043744,-183.0,0.00041,14]
[358688285,1745373043755,-150.0,0.00041095,120]
[358688286,1745373043764,-150.0,0.00041096,10]
[358688287,1745373043774,-800.0,0.00041096,7]
[358688288,1745373043784,-500.0,0.00041096,10]
[358688289,1745373043793,-162.0,0.00041096,30]
[358688290,1745373043803,-153.03,0.00041096,2]
[358688291,1745373043813,-335.84,0.00041619,30]
[358688292,1745373043823,-153.07609546,0.00041644,10]
[358688293,1745373043833,-1000.0,0.00041644,10]
[358688294,1745373043843,-1645.67790084,0.00041711,2]
[358688295,1745373043853,-4026.13682779,0.0004183,2]
[358688296,1745373043863,-1311.08,0.000419,14]
[358688297,1745373043873,-22146.0,0.00042,7]
[358688298,1745373043884,-311.97860147,0.00042192,10]
[358688299,1745373043893,-218.702,0.000422,63]
[358688300,1745373043903,-2228.27,0.0004242,2]
[358688301,1745373043913,-150.0,0.00042465,120]
[358688302,1745373043923,-800.0,0.00043,2]
[358688303,1745373043933,-180.0,0.00043336,29]
[358688304,1745373043943,-796.0,0.00043577,2]
[358688305,1745373043954,-358.247,0.00043577,2]
[358688306,1745373043963,-2145.0,0.00043577,2]
[358688307,1745373043974,-876.0,0.00043577,2]
[358688308,1745373043984,-150.0,0.00043587,2]
[358688309,1745373043995,-242.2,0.000436,120]
[358688310,1745373044005,-242.1,0.000436,120]
[358688311,1745373044015,-2312.16642875,0.00043606,2]
[358688312,1745373044025,-150.0,0.0004363,2]
[358688313,1745373044036,-150.0,0.00043657,2]
[358688314,1745373044046,-281.08204041,0.00043669,2]
[358688315,1745373044056,-1000.0,0.00043677,2]
[358688316,1745373044066,-150.0,0.00043678,2]
[358688317,1745373044077,-150.0,0.00043702,2]
[358688318,1745373044087,-150.0,0.00043736,2]
[358688319,1745373044098,-150.0,0.00043764,2]
[358688320,1745373044107,-150.0,0.00043765,2]
[358688321,1745373044117,-150.0,0.00043814,2]
[358688322,1745373044127,-150.0,0.00043815,2]
[358688323,1745373044138,-150.0,0.00043832,2]
[358688324,1745373044149,-150.0,0.00043835,120]
[358688325,1745373044159,-374.83204137,0.00043836,2]
[358688326,1745373044169,-152.0,0.00043836,3]
[358688327,1745373044179,-150.0,0.00043855,2]
[358688328,1745373044188,-150.0,0.00043894,2]
[358688329,1745373044199,-150.0,0.00043907,2]
[358688330,1745373044210,-150.0,0.00043956,2]
[358688331,1745373044219,-150.0,0.00043967,2]
[358688332,1745373044229,-150.0,0.0004397,2]
[358688333,1745373044240,-150.0,0.00043977,2]
[358688334,1745373044250,-150.0,0.00043979,2]
[358688335,1745373044261,-150.0,0.00043984,2]
[358688336,1745373044270,-150.0,0.00043985,2]
[358688337,1745373044281,-150.0,0.00043999,2]
[358688338,1745373044291,-611.0,0.00044,90]
[358688339,1745373044301,-150.0,0.00044062,2]
[358688340,1745373044311,-150.0,0.00044078,2]
[358688341,1745373044321,-611.0,0.0004411,90]
[358688342,1745373044331,-150.0,0.00044128,2]
[358688343,1745373044342,-150.0,0.00044133,2]
[358688344,1745373044352,-150.0,0.00044135,2]
[358688345,1745373044362,-150.0,0.00044138,2]
[358688346,1745373044372,-150.0,0.00044158,2]
[358688347,1745373044382,-150.0,0.00044186,2]
[358688348,1745373044393,-150.0,0.00044201,2]
[358688349,1745373044405,-150.0,0.0004422,2]
[358688350,1745373044415,-150.0,0.00044242,2]
[358688351,1745373044425,-150.0,0.00044298,2]
[358688352,1745373044436,-150.0,0.00044302,2]
[358688353,1745373044446,-611.0,0.00044384,90]
[358688354,1745373044456,-150.0,0.00044432,2]
[358688355,1745373044466,-150.0,0.00044443,2]
[358688356,1745373044476,-150.0,0.00044444,2]
[358688357,1745373044486,-150.0,0.00044447,2]
[358688358,1745373044496,-150.0,0.00044455,2]
[358688359,1745373044506,-150.0,0.00044492,2]
[358688360,1745373044517,-150.0,0.00044513,2]
[358688361,1745373044527,-150.0,0.00044515,2]
[358688362,1745373044537,-150.0,0.00044535,2]
[358688363,1745373044547,-150.0,0.00044545,2]
[358688364,1745373044557,-150.0,0.00044549,2]
[358688365,1745373044566,-150.0,0.00044556,2]
[358688366,1745373044576,-150.0,0.00044556,2]
[358688367,1745373044585,-150.0,0.00044558,2]
[358688368,1745373044596,-150.0,0.00044599,2]
[358688369,1745373044606,-150.0,0.00044629,2]
[358688370,1745373044616,-150.0,0.00044655,2]
[358688371,1745373044626,-611.0,0.00044658,90]
[358688372,1745373044636,-150.0,0.00044659,2]
[358688373,1745373044647,-2228.27,0.00044684,2]
[358688374,1745373044656,-150.0,0.00044686,2]
[358688375,1745373044667,-150.0,0.00044694,2]
[358688376,1745373044677,-150.0,0.00044748,2]
[358688377,1745373044687,-150.0,0.00044767,2]
[358688378,1745373044698,-150.0,0.00044777,2]
[358688379,1745373044708,-150.0,0.00044779,2]
[358688380,1745373044718,-150.0,0.00044782,2]
[358688381,1745373044728,-150.0,0.00044812,2]
[358688382,1745373044738,-150.0,0.00044847,2]
[358688383,1745373044748,-150.0,0.00044858,2]
[358688384,1745373044758,-150.0,0.00044886,2]
[358688385,1745373044767,-214.20442164,0.000449,18]
[358688386,1745373044777,-611.0,0.00044932,90]
[358688387,1745373044788,-150.0,0.00044933,2]
[358688388,1745373044797,-150.0,0.00044946,2]
[358688389,1745373044807,-150.0,0.00044977,2]
[358688390,1745373044818,-150.0,0.00044977,2]
[358688391,1745373044828,-13158.389578,0.0004499,2]
[358688392,1745373044839,-579.26393896,0.00044999,30]
[358688393,1745373044849,-193.59831148,0.00045,15]
[358688394,1745373044859,-850.0,0.00045,2]
[358688395,1745373044869,-100000.0,0.00045,30]
[358688396,1745373044880,-151.0,0.00045,120]
[358688397,1745373044890,-1429.0,0.00045,120]
[358688398,1745373044901,-6121.91151702,0.00045001,2]
[358688399,1745373044911,-150.0,0.00045023,2]
[358688400,1745373044922,-150.0,0.00045028,2]
[358688401,1745373044932,-150.0,0.00045093,2]
[358688402,1745373044942,-150.0,0.00045107,2]
[358688403,1745373044952,-150.0,0.00045114,2]
[358688404,1745373044962,-150.0,0.00045139,2]
[358688405,1745373044972,-86977.7057569,0.00045143,2]
[358688406,1745373044983,-6828.0708353,0.00045143,2]
[358688407,1745373044993,-2809.8901087,0.00045143,2]
[358688408,1745373045004,-150.0,0.0004517,2]
[358688409,1745373045014,-151.0,0.00045174,14]
[358688410,1745373045025,-151.0,0.00045174,14]
[358688411,1745373045035,-151.0,0.00045174,14]
[358688412,1745373045045,-151.0,0.00045174,14]
[358688413,1745373045055,-151.0,0.00045174,14]
[358688414,1745373045066,-151.0,0.00045174,14]
[358688415,1745373045075,-151.0,0.00045174,14]
[358688416,1745373045086,-182.806531,0.00045174,14]
[358688417,1745373045096,-182.806531,0.00045174,14]
[358688418,1745373045106,-151.0,0.00045174,14]
[358688419,1745373045116,-184.610361,0.00045174,14]
[358688420,1745373045126,-184.610361,0.00045174,14]
[358688421,1745373045136,-89421.4497096,0.00045174,2]
[358688422,1745373045146,-91865.1936622,0.00045174,2]
[358688423,1745373045155,-94308.9376149,0.00045174,2]
[358688425,1745373045165,-7019.9137525,0.00045174,2]
[358688426,1745373045175,-7211.7566698,0.00045174,2]
[358688427,1745373045186,-7403.5995871,0.00045174,2]
[358688428,1745373045195,-2888.8373734,0.00045174,2]
[358688429,1745373045205,-2967.7846381,0.00045174,2]
[358688430,1745373045214,-3046.7319029,0.00045174,2]
[358688431,1745373045224,-150.0,0.00045178,2]
[358688432,1745373045234,-150.0,0.00045179,2]
[358688433,1745373045244,-150.0,0.0004518,2]
[358688434,1745373045254,-27942.81229731,0.000452,2]
[358688435,1745373045264,-152.758649,0.00045205,14]
[358688436,1745373045273,-165.798885,0.00045205,14]
[358688437,1745373045283,-151.0,0.00045205,14]
[358688438,1745373045293,-300.36764,0.00045205,14]
[358688439,1745373045302,-165.868539,0.00045205,14]
[358688440,1745373045312,-228.888657,0.00045205,14]
[358688441,1745373045321,-151.0,0.00045205,14]
[358688442,1745373045331,-151.0,0.00045205,14]
[358688443,1745373045341,-196.356264,0.00045205,14]
[358688444,1745373045350,-151.0,0.00045205,14]
[358688445,1745373045359,-151.0,0.00045205,14]
[358688446,1745373045369,-151.0,0.00045205,14]
[358688447,1745373045378,-151.0,0.00045205,14]
[358688448,1745373045388,-151.0,0.00045205,14]
[358688449,1745373045403,-151.0,0.00045205,14]
[358688450,1745373045412,-151.0,0.00045205,14]
[358688451,1745373045422,-151.0,0.00045205,14]
[358688452,1745373045432,-193.920105,0.00045205,14]
[358688453,1745373045443,-178.60976,0.00045205,14]
[358688454,1745373045455,-151.0,0.00045205,14]
[358688455,1745373045465,-151.0,0.00045205,14]
[358688456,1745373045474,-151.0,0.00045205,14]
[358688457,1745373045486,-151.0,0.00045205,14]
[358688458,1745373045498,-151.0,0.00045205,14]
[358688459,1745373045507,-151.0,0.00045205,14]
[358688460,1745373045517,-151.0,0.00045205,14]
[358688461,1745373045527,-151.0,0.00045205,14]
[358688462,1745373045537,-151.0,0.00045205,14]
[358688463,1745373045547,-229.922328,0.00045205,14]
[358688464,1745373045557,-151.0,0.00045205,14]
[358688465,1745373045567,-153.34803,0.00045205,14]
[358688466,1745373045576,-151.0,0.00045205,14]
[358688467,1745373045586,-153.003464,0.00045205,14]
[358688468,1745373045595,-151.0,0.00045205,14]
[358688469,1745373045605,-151.0,0.00045205,14]
[358688470,1745373045615,-151.0,0.00045205,14]
[358688471,1745373045626,-151.0,0.00045205,14]
[358688472,1745373045636,-151.0,0.00045205,14]
[358688473,1745373045645,-151.0,0.00045205,14]
[358688474,1745373045655,-151.0,0.00045205,14]
[358688475,1745373045665,-151.0,0.00045205,14]
[358688476,1745373045675,-151.0,0.00045205,14]
[358688477,1745373045685,-151.0,0.00045205,14]
[358688478,1745373045695,-151.0,0.00045205,14]
[358688479,1745373045708,-151.0,0.00045205,14]
[358688480,1745373045718,-151.0,0.00045205,14]
[358688481,1745373045727,-151.0,0.00045205,14]
[358688482,1745373045737,-151.0,0.00045205,14]
[358688483,1745373045747,-151.0,0.00045205,14]
[358688484,1745373045757,-240.594463,0.00045205,14]
[358688485,1745373045767,-158.22326,0.00045205,14]
[358688486,1745373045778,-158.22326,0.00045205,14]
[358688487,1745373045790,-158.22326,0.00045205,14]
[358688488,1745373045799,-158.22326,0.00045205,14]
[358688489,1745373045810,-158.22326,0.00045205,14]
[358688491,1745373045821,-158.22326,0.00045205,14]
[358688492,1745373045830,-158.22326,0.00045205,14]
[358688493,1745373045840,-158.22326,0.00045205,14]
[358688494,1745373045850,-158.22326,0.00045205,14]
[358688495,1745373045862,-158.22326,0.00045205,14]
[358688496,1745373045872,-158.22326,0.00045205,14]
[358688498,1745373045882,-158.22326,0.00045205,14]
[358688500,1745373045892,-158.22326,0.00045205,14]
[358688502,1745373045902,-158.22326,0.00045205,14]
[358688504,1745373045912,-158.22326,0.00045205,14]
[358688506,1745373045922,-158.22326,0.00045205,14]
[358688508,1745373045931,-158.22326,0.00045205,14]
[358688509,1745373045941,-158.22326,0.00045205,14]
[358688510,1745373045952,-158.223268,0.00045205,14]
[358688511,1745373045962,-151.0,0.00045205,14]
[358688512,1745373045972,-151.0,0.00045205,14]
[358688513,1745373045982,-151.0,0.00045205,14]
[358688514,1745373045992,-151.0,0.00045205,14]
[358688515,1745373046002,-151.0,0.00045205,14]
[358688516,1745373046011,-292.0,0.00045205,14]
[358688517,1745373046021,-151.0,0.00045205,14]
[358688518,1745373046031,-151.0,0.00045205,14]
[358688519,1745373046042,-151.0,0.00045205,14]
[358688520,1745373046052,-151.0,0.00045205,14]
[358688521,1745373046062,-151.0,0.00045205,14]
[358688522,1745373046071,-151.0,0.00045205,14]
[358688523,1745373046082,-151.0,0.00045205,14]
[358688524,1745373046092,-151.0,0.00045205,14]
[358688525,1745373046102,-151.0,0.00045205,14]
[358688526,1745373046112,-151.0,0.00045205,14]
[358688527,1745373046122,-151.0,0.00045205,14]
[358688528,1745373046132,-151.0,0.00045205,14]
[358688529,1745373046142,-151.0,0.00045205,14]
[358688530,1745373046151,-151.0,0.00045205,14]
[358688531,1745373046161,-151.0,0.00045205,14]
[358688532,1745373046171,-151.0,0.00045205,14]
[358688533,1745373046180,-151.0,0.00045205,14]
[358688534,1745373046190,-151.0,0.00045205,14]
[358688535,1745373046200,-151.0,0.00045205,14]
[358688536,1745373046209,-151.0,0.00045205,14]
[358688537,1745373046220,-151.0,0.00045205,14]
[358688538,1745373046229,-232.471875,0.00045205,14]
[358688539,1745373046239,-151.0,0.00045205,14]
[358688540,1745373046248,-151.0,0.00045205,14]
[358688541,1745373046258,-151.0,0.00045205,14]
[358688542,1745373046268,-244.12793952,0.00045205,14]
[358688543,1745373046278,-151.0,0.00045205,14]
[358688544,1745373046287,-151.0,0.00045205,14]
[358688545,1745373046297,-151.0,0.00045205,14]
[358688546,1745373046307,-151.0,0.00045205,14]
[358688547,1745373046316,-151.0,0.00045205,14]
[358688548,1745373046326,-151.0,0.00045205,14]
[358688549,1745373046335,-151.0,0.00045205,14]
[358688550,1745373046345,-151.0,0.00045205,14]
[358688551,1745373046354,-287.942009,0.00045205,14]
[358688552,1745373046364,-151.0,0.00045205,14]
[358688553,1745373046375,-182.903621,0.00045205,14]
[358688554,1745373046385,-151.0,0.00045205,14]
[358688555,1745373046395,-263.624752,0.00045205,14]
[358688556,1745373046408,-151.0,0.00045205,14]
[358688557,1745373046417,-151.0,0.00045205,14]
[358688558,1745373046427,-151.0,0.00045205,14]
[358688559,1745373046438,-151.0,0.00045205,14]
[358688560,1745373046453,-151.0,0.00045205,14]
[358688561,1745373046464,-151.0,0.00045205,14]
[358688562,1745373046477,-151.0,0.00045205,14]
[358688563,1745373046489,-151.0,0.00045205,14]
[358688564,1745373046499,-151.0,0.00045205,14]
[358688565,1745373046510,-241.922175,0.00045205,14]
[358688566,1745373046521,-500.0,0.00045205,2]
[358688567,1745373046532,-500.0,0.00045205,2]
[358688568,1745373046542,-500.0,0.00045205,2]
[358688569,1745373046552,-600.0,0.00045205,2]
[358688570,1745373046563,-501.26015999,0.00045205,30]
[358688571,1745373046573,-409.85070395,0.00045205,30]
[358688572,1745373046583,-1000.0,0.00045205,28]
[358688573,1745373046592,-1000.0,0.00045205,28]
[358688574,1745373046602,-1000.0,0.00045205,28]
[358688575,1745373046611,-1000.0,0.00045205,28]
[358688576,1745373046803,-1000.0,0.00045205,28]
[358688577,1745373046813,-151.0,0.00045205,14]
[358688578,1745373046823,-1000.0,0.00045205,28]
[358688579,1745373046832,-151.0,0.00045205,14]
[358688580,1745373046842,-1000.0,0.00045205,28]
[358688581,1745373046851,-151.0,0.00045205,14]
[358688582,1745373046860,-1000.0,0.00045205,28]
[358688583,1745373046870,-151.0,0.00045205,14]
[358688584,1745373046880,-1000.0,0.00045205,28]
[358688585,1745373046889,-151.0,0.00045205,14]
[358688586,1745373046899,-1000.0,0.00045205,28]
[358688587,1745373046909,-151.0,0.00045205,14]
[358688588,1745373046918,-1000.0,0.00045205,28]
[358688589,1745373046928,-151.0,0.00045205,14]
[358688590,1745373046938,-1000.0,0.00045205,28]
[358688591,1745373046947,-151.0,0.00045205,14]
[358688592,1745373046960,-1000.0,0.00045205,28]
[358688593,1745373046969,-151.0,0.00045205,14]
[358688594,1745373046979,-1000.0,0.00045205,28]
[358688595,1745373046989,-151.0,0.00045205,14]
[358688596,1745373046999,-1000.0,0.00045205,28]
[358688597,1745373047009,-1000.0,0.00045205,28]
[358688598,1745373047019,-185.081113,0.00045205,14]
[358688599,1745373047028,-1000.0,0.00045205,28]
[358688600,1745373047038,-1000.0,0.00045205,28]
[358688601,1745373047047,-1000.0,0.00045205,28]
[358688602,1745373047057,-1000.0,0.00045205,28]
[358688603,1745373047067,-1000.0,0.00045205,28]
[358688604,1745373047077,-1000.0,0.00045205,28]
[358688605,1745373047087,-1000.0,0.00045205,28]
[358688606,1745373047097,-1000.0,0.00045205,28]
[358688607,1745373047107,-1000.0,0.00045205,28]
[358688608,1745373047117,-1000.0,0.00045205,28]
[358688609,1745373047126,-1000.0,0.00045205,28]
[358688610,1745373047136,-1000.0,0.00045205,28]
[358688611,1745373047146,-1000.0,0.00045205,28]
[358688612,1745373047155,-1000.0,0.00045205,28]
[358688613,1745373047165,-1000.0,0.00045205,28]
[358688614,1745373047175,-1000.0,0.00045205,28]
[358688615,1745373047184,-1000.0,0.00045205,28]
[358688616,1745373047194,-1000.0,0.00045205,28]
[358688617,1745373047204,-1000.0,0.00045205,28]
[358688618,1745373047214,-1000.0,0.00045205,28]
[358688619,1745373047224,-1000.0,0.00045205,28]
[358688620,1745373047234,-1000.0,0.00045205,28]
[358688621,1745373047244,-545.268749,0.00045205,28]
[358688622,1745373047254,-151.0,0.00045205,14]
[358688623,1745373047264,-201.682257,0.00045205,14]
[358688624,1745373047275,-151.0,0.00045205,14]
[358688625,1745373047285,-151.0,0.00045205,14]
[358688626,1745373047295,-151.0,0.00045205,14]
[358688627,1745373047304,-151.0,0.00045205,14]
[358688628,1745373047314,-151.0,0.00045205,14]
[358688629,1745373047323,-151.0,0.00045205,14]
[358688630,1745373047333,-151.0,0.00045205,14]
[358688631,1745373047342,-151.0,0.00045205,14]
[358688632,1745373047354,-500.0,0.00045205,30]
[358688633,1745373047364,-500.0,0.00045205,30]
[358688634,1745373047373,-151.0,0.00045205,14]
[358688635,1745373047383,-500.0,0.00045205,30]
[358688636,1745373047395,-151.0,0.00045205,14]
[358688637,1745373047404,-252.08438286,0.00045205,30]
[358688638,1745373047415,-265.224957,0.00045205,14]
[358688639,1745373047425,-182.806531,0.00045205,14]
[358688640,1745373047436,-182.806531,0.00045205,14]
[358688641,1745373047447,-182.806531,0.00045205,14]
[358688642,1745373047460,-182.806531,0.00045205,14]
[358688643,1745373047474,-182.806531,0.00045205,14]
[358688644,1745373047484,-182.806531,0.00045205,14]
[358688645,1745373047496,-182.806531,0.00045205,14]
[358688646,1745373047505,-182.806531,0.00045205,14]
[358688647,1745373047515,-500.0,0.00045205,30]
[358688648,1745373047524,-182.806531,0.00045205,14]
[358688649,1745373047533,-486.1939929,0.00045205,30]
[358688650,1745373047543,-182.806531,0.00045205,14]
[358688651,1745373047553,-182.806531,0.00045205,14]
[358688652,1745373047564,-182.806531,0.00045205,14]
[358688653,1745373047574,-182.806531,0.00045205,14]
[358688654,1745373047583,-182.806531,0.00045205,14]
[358688655,1745373047593,-182.806531,0.00045205,14]
[358688656,1745373047603,-182.806522,0.00045205,14]
[358688657,1745373047612,-151.0,0.00045205,14]
[358688658,1745373047621,-151.0,0.00045205,14]
[358688659,1745373047630,-151.0,0.00045205,14]
[358688660,1745373047640,-151.0,0.00045205,14]
[358688661,1745373047649,-163.503955,0.00045205,14]
[358688662,1745373047659,-151.0,0.00045205,14]
[358688663,1745373047669,-151.0,0.00045205,14]
[358688664,1745373047678,-151.0,0.00045205,14]
[358688665,1745373047687,-151.0,0.00045205,14]
[358688666,1745373047697,-151.0,0.00045205,14]
[358688667,1745373047708,-154.586906,0.00045205,14]
[358688668,1745373047717,-516.05259795,0.00045205,3]
[358688669,1745373047727,-151.0,0.00045205,14]
[358688670,1745373047736,-151.0,0.00045205,14]
[358688671,1745373047746,-151.0,0.00045205,14]
[358688672,1745373047755,-151.0,0.00045205,14]
[358688673,1745373047765,-500.0,0.00045205,30]
[358688674,1745373047774,-216.348932,0.00045205,14]
[358688675,1745373047784,-500.0,0.00045205,30]
[358688676,1745373047794,-500.0,0.00045205,30]
[358688677,1745373047803,-438.11883987,0.00045205,30]
[358688678,1745373047813,-387.51867186,0.00045205,30]
[358688679,1745373047823,-184.610361,0.00045205,14]
[358688680,1745373047833,-184.610361,0.00045205,14]
[358688681,1745373047842,-500.0,0.00045205,30]
[358688682,1745373047852,-540.73149376,0.00045205,30]
[358688683,1745373047861,-184.610361,0.00045205,14]
[358688684,1745373047871,-184.610361,0.00045205,14]
[358688685,1745373047880,-184.610361,0.00045205,14]
[358688686,1745373047890,-184.610361,0.00045205,14]
[358688687,1745373047900,-184.610361,0.00045205,14]
[358688688,1745373047909,-184.610361,0.00045205,14]
[358688689,1745373047919,-184.610361,0.00045205,14]
[358688690,1745373047928,-500.0,0.00045205,30]
[358688691,1745373047938,-500.0,0.00045205,30]
[358688692,1745373047947,-184.610361,0.00045205,14]
[358688693,1745373047959,-500.0,0.00045205,30]
[358688694,1745373047968,-184.610361,0.00045205,14]
[358688695,1745373047978,-500.0,0.00045205,30]